bitfinex/quotes_ETHUSD_20240718
["timestamp","ask_amount","ask_price","bid_price","bid_amount"]
[1721320810252,2.4848,3415.0,3414.4,2.92871]
[1721320810425,2.4848,3415.0,3414.2,2.92888]
[1721320811029,5.41306,3415.0,3414.2,2.92888]
[1721320811210,5.41306,3415.0,3414.0,4.265985]
[1721320811532,2.92836,3414.9,3414.0,4.265985]
[1721320811709,2.92836,3414.9,3414.1,2.92898]
[1721320812350,2.92848,3414.8,3413.9,5.92915]
[1721320812522,2.3992,3414.7,3413.4,2.92961]
[1721320812724,3.632306,3415.0,3413.4,2.92961]
[1721320812725,2.3992,3414.2,3413.4,2.92958]
[1721320813260,2.3992,3414.2,3413.4,5.85913]
[1721320813578,2.3992,3414.2,3413.5,2.92952]
[1721320813793,2.3992,3414.2,3413.5,2.92947]
[1721320813925,2.3992,3414.2,3413.6,0.292947]
[1721320814124,2.3992,3414.2,3413.7,2.92936]
[1721320814564,2.3992,3414.2,3413.6,0.292947]
[1721320815636,2.3992,3414.2,3413.7,2.92936]
[1721320816873,2.3992,3414.2,3413.6,0.292947]
[1721320817770,5.32819,3414.2,3413.3,5.85931]
[1721320817983,5.32819,3414.2,3413.4,3.0]
[1721320818170,2.92903,3414.1,3413.4,3.0]
[1721320819069,2.3992,3414.2,3413.4,3.0]
[1721320819275,2.3992,3414.2,3413.7,2.92931]
[1721320819476,2.4812,3415.0,3414.1,2.92902]
[1721320819664,2.4812,3415.0,3413.9,2.92913]
[1721320819665,2.92849,3414.8,3413.9,2.92913]
[1721320819973,2.92849,3414.8,3414.0,0.06521142]
[1721320820872,2.302,3414.7,3414.0,0.06521142]
[1721320821472,5.23052,3414.7,3414.0,0.06521142]
[1721320821647,2.9286,3414.6,3414.0,0.06521142]
[1721320821851,3.117891,3414.7,3414.0,0.06521142]
[1721320821852,2.302,3414.2,3414.0,0.06521142]
[1721320822052,2.302,3414.2,3413.4,3.0]
[1721320822282,2.302,3414.2,3412.9,7.44]
[1721320822283,8.16,3414.2,3414.1,0.06515372]
[1721320822464,2.46,3413.6,3412.9,2.93001]
[1721320822981,2.46,3413.6,3413.0,2.99349241]
[1721320823379,2.46,3413.6,3413.1,2.92986]
[1721320823556,2.46,3413.6,3413.3,2.9297]
[1721320823874,2.46,3413.6,3413.1,2.99334467]
[1721320823875,2.46,3414.1,3413.6,2.92945]
[1721320824092,2.46,3414.1,3413.7,2.92936]
[1721320824252,2.46,3414.1,3413.7,2.99251834]
[1721320824679,2.46,3414.1,3413.8,2.92928]
[1721320825053,2.46,3414.1,3413.9,0.06304292]
[1721320825689,2.46,3414.1,3413.7,2.92937]
[1721320825853,2.46,3414.1,3414.0,0.06298522]
[1721320826051,2.46,3414.1,3413.7,2.92937]
[1721320826569,2.46,3414.1,3413.8,0.06310063]
[1721320826770,2.46,3414.1,3413.7,2.92937]
[1721320826965,2.46,3414.1,3413.9,0.06304292]
[1721320827166,2.46,3414.1,3413.5,2.92947]
[1721320827167,2.998877,3414.1,3413.5,2.92953]
[1721320827386,2.46,3414.1,3414.0,0.06298522]
[1721320827586,2.46,3414.1,3413.5,2.92953]
[1721320827891,2.46,3414.1,3414.0,0.06298522]
[1721320828124,2.92873,3414.5,3413.5,2.92953]
[1721320828125,2.2986,3414.5,3413.5,2.531]
[1721320828390,2.2986,3414.5,3414.2,2.92889]
[1721320828759,2.2986,3414.5,3414.3,0.06281213]
[1721320828977,5.22728,3414.5,3413.6,5.92937]
[1721320829165,2.2986,3414.5,3414.4,0.06275444]
[1721320829395,2.821311,3414.5,3413.9,2.92914]
[1721320829601,2.2986,3414.5,3414.4,0.06275444]
[1721320829775,2.2986,3414.5,3414.1,2.92902]
[1721320829975,2.2986,3414.5,3414.4,0.06275444]
[1721320830212,2.2986,3414.5,3414.1,2.92902]
[1721320830422,2.2986,3414.5,3413.6,3.0]
[1721320830423,2.2986,3414.5,3414.4,0.06275444]
[1721320830721,2.2986,3414.5,3413.9,2.92916]
[1721320831007,3.091,3415.4,3414.0,3.0]
[1721320831008,2.3283,3415.4,3414.0,3.0]
[1721320831218,2.3283,3415.4,3414.8,2.92839]
[1721320831393,2.3283,3415.4,3414.3,2.531]
[1721320831394,2.3283,3415.4,3415.0,2.92819]
[1721320831581,2.3283,3415.4,3415.1,2.92816]
[1721320831782,2.3283,3415.4,3415.1,0.09250759]
[1721320832089,2.3283,3415.4,3414.3,5.45984]
[1721320832090,2.56113,3415.4,3415.2,0.09244905]
[1721320832294,2.56113,3415.4,3414.5,2.92866]
[1721320832489,2.56113,3415.4,3414.6,2.92859]
[1721320832702,5.48904,3415.4,3414.6,3.02139038]
[1721320832912,0.841678,3415.3,3414.6,0.09280038]
[1721320833133,0.841678,3415.3,3414.6,2.92853]
[1721320833335,2.3283,3415.4,3414.8,2.92837]
[1721320833619,2.3283,3415.4,3414.7,3.02125181]
[1721320833815,2.3283,3415.4,3414.9,0.0926247]
[1721320834024,2.3283,3415.4,3414.7,2.92851]
[1721320834316,3.146687,3415.4,3414.7,2.92851]
[1721320834485,3.146687,3415.4,3414.8,0.09268325]
[1721320835129,3.146687,3415.4,3414.5,2.92867]
[1721320835285,6.074627,3415.4,3414.9,0.0926247]
[1721320835487,0.9002367,3415.3,3414.5,2.92867]
[1721320835715,0.9002367,3415.3,3414.7,2.92845]
[1721320836020,0.9002367,3415.3,3414.8,0.09268325]
[1721320836393,0.9002367,3415.3,3414.5,2.92862]
[1721320836586,5.40233,3415.2,3414.9,0.09255723]
[1721320836804,5.40233,3415.2,3414.3,2.92882]
[1721320836805,0.92305667,3415.1,3414.4,2.92876]
[1721320836983,6.77939667,3415.1,3415.0,0.09249868]
[1721320837200,6.77939667,3415.1,3414.0,3.0]
[1721320837201,2.92836,3414.9,3414.0,5.92906]
[1721320837611,2.92877,3414.4,3413.3,2.92967]
[1721320837816,2.3942,3414.3,3413.6,2.92941]
[1721320838131,2.3942,3414.3,3413.4,2.92956]
[1721320838132,6.148223,3414.3,3413.4,2.92956]
[1721320838427,6.148223,3414.3,3413.1,2.92985]
[1721320838585,2.92908,3414.1,3413.3,2.92971]
[1721320838941,2.92912,3414.0,3413.2,2.92979]
[1721320839085,5.85795,3414.2,3413.2,2.92979]
[1721320839288,0.9077323,3414.1,3413.2,5.85951]
[1721320839509,0.9077323,3414.1,3413.2,2.92972]
[1721320839733,2.3942,3414.3,3413.6,2.92938]
[1721320839892,2.3942,3414.3,3413.8,2.92925]
[1721320840620,2.3942,3414.3,3413.8,2.92921]
[1721320840789,5.32277,3414.7,3413.9,2.92917]
[1721320841098,5.32277,3414.7,3413.8,2.92923]
[1721320841300,0.825114,3414.6,3413.8,2.92923]
[1721320841496,0.825114,3414.6,3413.9,2.92919]
[1721320841908,0.825114,3414.6,3413.5,2.531]
[1721320841909,0.825114,3414.6,3413.7,2.9293]
[1721320842111,0.825114,3414.6,3413.5,2.531]
[1721320842489,2.92869,3414.5,3413.7,2.92934]
[1721320842715,0.9076574,3414.4,3413.8,2.92927]
[1721320842890,0.9076574,3414.4,3413.7,2.92936]
[1721320843091,0.9076574,3414.4,3413.5,5.46048]
[1721320843389,0.9076574,3414.4,3413.6,2.92945]
[1721320843620,5.4204,3414.3,3413.2,3.0]
[1721320843932,0.63280574,3414.2,3413.2,3.0]
[1721320844093,0.63280574,3414.2,3413.5,2.92954]
[1721320844602,0.63280574,3414.2,3413.3,2.92969]
[1721320844802,0.63280574,3414.2,3413.5,2.92953]
[1721320845216,2.4915,3414.3,3413.1,8.46084]
[1721320845394,2.4915,3414.3,3413.7,2.9293]
[1721320845717,2.4915,3414.3,3413.6,2.92945]
[1721320845907,5.42035,3414.3,3413.3,2.92963]
[1721320846294,2.92903,3414.1,3413.3,5.85926]
[1721320846619,5.42035,3414.3,3413.4,2.92962]
[1721320846823,0.834907,3414.2,3413.5,2.92953]
[1721320847006,3.763857,3414.2,3413.3,2.92963]
[1721320848406,3.763857,3414.2,3413.4,2.92961]
[1721320848927,0.834907,3414.2,3413.5,2.92949]
[1721320849090,0.834907,3414.2,3413.4,2.9296]
[1721320849489,2.4915,3414.3,3413.5,2.92948]
[1721320849691,2.4915,3414.3,3413.6,2.92944]
[1721320850105,2.4915,3414.3,3413.7,0.09339921]
[1721320850515,5.42036,3414.3,3413.7,0.09339921]
[1721320850923,5.42036,3414.3,3413.5,2.92953]
[1721320851231,0.834908,3414.2,3413.4,2.92957]
[1721320851400,0.834908,3414.2,3413.6,0.0934578]
[1721320851725,0.834908,3414.2,3413.5,2.92948]
[1721320851726,0.834908,3414.2,3413.5,3.0229964]
[1721320851938,2.4915,3414.3,3413.7,0.09339921]
[1721320852097,2.4915,3414.3,3413.6,3.0229078]
[1721320852642,5.42042,3414.3,3413.6,0.0934578]
[1721320853131,2.92908,3414.1,3413.2,2.92973]
[1721320853341,3.76403,3414.1,3413.7,0.09339921]
[1721320853496,0.83495,3414.1,3413.2,2.92973]
[1721320853700,0.83495,3414.1,3413.4,2.92962]
[1721320854261,0.83495,3414.1,3413.5,0.09353094]
[1721320854400,3.764,3414.1,3413.5,0.09353094]
[1721320854600,3.764,3414.1,3413.2,2.92973]
[1721320854816,5.42042,3414.3,3413.6,0.09347234]
[1721320855010,2.92897,3414.2,3413.4,2.92962]
[1721320855230,2.92897,3414.2,3413.7,0.09341374]
[1721320855435,2.92897,3414.2,3413.4,2.92962]
[1721320855643,2.92897,3414.2,3413.8,0.09335515]
[1721320855823,0.834939,3414.1,3413.4,2.92962]
[1721320856026,0.834939,3414.1,3413.9,0.09329656]
[1721320856415,0.834939,3414.1,3414.0,0.09323797]
[1721320856641,3.763959,3414.1,3413.4,2.92962]
[1721320856844,3.763959,3414.1,3414.0,0.09323797]
[1721320857024,3.763959,3414.1,3413.4,2.92962]
[1721320857230,3.763959,3414.1,3413.2,2.92973]
[1721320857231,3.763959,3414.1,3414.0,0.09323797]
[1721320857527,3.763959,3414.1,3413.2,2.92973]
[1721320857835,3.763959,3414.1,3413.3,0.09364815]
[1721320857836,2.9864459,3414.0,3413.3,0.09364815]
[1721320858027,2.9292,3413.9,3413.1,5.92988]
[1721320858205,2.9293,3413.8,3413.4,0.09360201]
[1721320858406,2.92952,3413.6,3412.8,2.93009]
[1721320858626,2.92952,3413.6,3413.5,0.09355171]
[1721320858828,2.92952,3413.6,3412.8,2.93009]
[1721320859044,2.92952,3413.6,3413.5,0.09355171]
[1721320859350,3.96413168,3413.6,3412.8,2.93009]
[1721320860236,2.92954,3413.5,3412.9,0.09390339]
[1721320861308,2.92968,3413.4,3412.9,0.09390339]
[1721320861507,1.03461168,3413.6,3412.9,0.09390339]
[1721320861508,2.92973,3413.3,3412.9,0.09390339]
[1721320861708,2.2931,3413.2,3412.4,3.0]
[1721320861954,2.2931,3413.2,3413.0,0.09391333]
[1721320862140,3.108341,3413.2,3413.0,0.09391333]
[1721320862321,6.038201,3413.2,3412.4,2.93041]
[1721320862520,8.968061,3413.2,3413.1,0.09385471]
[1721320862716,2.93001,3413.0,3412.3,3.0]
[1721320863046,2.93001,3413.0,3412.4,0.09426511]
[1721320863551,2.2931,3413.2,3412.4,3.02468511]
[1721320863854,2.2721,3413.5,3412.7,2.93015]
[1721320864154,2.9297,3413.4,3412.5,3.78590851]
[1721320864307,2.9297,3413.4,3412.8,0.09403058]
[1721320864511,3.742829,3413.4,3412.8,0.09403058]
[1721320864753,3.742829,3413.4,3412.6,2.9303]
[1721320865050,3.742829,3413.4,3412.9,0.09397195]
[1721320865339,3.742829,3413.4,3412.6,2.9303]
[1721320865508,3.742829,3413.4,3413.0,0.09391333]
[1721320865739,2.92986,3413.2,3412.4,2.93044]
[1721320866065,0.6014929,3413.3,3412.3,3.0]
[1721320866066,2.92991,3413.1,3412.3,3.0]
[1721320866274,2.92991,3413.1,3412.5,0.09420647]
[1721320866642,2.92991,3413.1,3412.3,3.0]
[1721320866838,2.92991,3413.1,3412.6,0.09414784]
[1721320867035,2.92991,3413.1,3412.3,3.0]
[1721320867366,2.92991,3413.1,3412.7,0.09408921]
[1721320867543,3.515874,3413.1,3412.3,3.0]
[1721320867865,2.92964,3413.4,3412.6,2.93028]
[1721320868275,2.9298,3413.2,3412.7,0.09408921]
[1721320868445,2.92964,3413.4,3412.7,0.09408921]
[1721320868446,2.92973,3413.3,3412.7,0.09408921]
[1721320868640,2.92973,3413.3,3412.4,2.93043]
[1721320868842,2.92973,3413.3,3412.8,0.09403058]
[1721320869059,2.9298,3413.2,3412.3,5.531]
[1721320869253,2.92995,3413.1,3412.3,8.46151]
[1721320869570,2.92999,3413.0,3412.4,0.09426511]
[1721320870094,2.92999,3413.0,3412.2,5.93064]
[1721320870288,2.92999,3413.0,3412.5,0.09427191]
[1721320870489,2.92999,3413.0,3412.2,5.93064]
[1721320870639,2.92999,3413.0,3412.6,0.09421327]
[1721320870845,2.92999,3413.0,3412.2,7.069871]
[1721320871041,2.92999,3413.0,3412.7,0.09415464]
[1721320871240,2.92999,3413.0,3412.2,5.93064]
[1721320871440,2.92999,3413.0,3412.8,0.09409601]
[1721320871675,0.813147,3413.3,3412.3,2.93057]
[1721320871879,2.92966,3413.4,3412.9,0.09403739]
[1721320872181,2.2721,3413.5,3412.3,3.816698]
[1721320872182,5.20167,3413.5,3412.3,5.46153]
[1721320872343,2.92972,3413.3,3413.0,0.09397877]
[1721320872748,2.92972,3413.3,3412.6,2.93031]
[1721320872948,2.92972,3413.3,3412.3,5.46153]
[1721320872949,2.92972,3413.3,3413.1,0.09395545]
[1721320873145,0.520182,3413.2,3412.5,2.93039]
[1721320873467,2.9297,3413.4,3413.2,0.09389684]
[1721320873673,2.92973,3413.3,3412.5,2.93039]
[1721320874183,5.20169,3413.5,3412.6,0.09424857]
[1721320874387,5.8595,3413.3,3412.6,0.09424857]
[1721320874597,2.92971,3413.3,3412.6,0.09424857]
[1721320875788,2.9298,3413.2,3412.6,0.09424857]
[1721320877047,2.9298,3413.2,3412.4,2.93048]
[1721320877346,2.9298,3413.2,3412.5,0.09430721]
[1721320877547,2.9298,3413.2,3412.5,3.02468721]
[1721320878665,2.92998,3413.0,3412.5,0.09430721]
[1721320878875,2.92998,3413.0,3412.2,3.0]
[1721320879056,3.742955,3413.2,3412.3,2.93051]
[1721320879373,2.92989,3413.1,3412.4,0.09436585]
[1721320880204,5.29239,3413.0,3412.4,0.09436585]
[1721320880502,2.3624,3413.0,3412.3,2.93051]
[1721320880654,2.3624,3413.0,3412.5,0.09433422]
[1721320880856,2.3624,3413.0,3412.3,2.93051]
[1721320881093,2.3624,3413.0,3412.4,0.09439286]
[1721320881457,5.29239,3413.0,3412.4,0.09439286]
[1721320881657,6.1959245,3413.0,3412.4,0.09439286]
[1721320882083,3.2659345,3413.0,3412.4,3.02487286]
[1721320882289,2.3624,3413.0,3412.4,3.02487286]
[1721320883063,2.3624,3413.0,3412.4,0.09439286]
[1721320883269,5.29237,3413.0,3412.2,5.93064]
[1721320883464,5.29237,3413.0,3412.3,0.0944671]
[1721320885801,2.92983,3413.2,3412.4,2.93042]
[1721320886319,2.92983,3413.2,3412.5,0.09434982]
[1721320886465,3.748,3413.2,3412.5,0.09434982]
[1721320887570,3.748,3413.2,3412.5,3.02473982]
[1721320887770,0.81817,3413.2,3412.5,3.02473982]
[1721320888388,3.74798,3413.2,3412.5,3.02473982]
[1721320889181,3.74798,3413.2,3412.5,0.09434982]
[1721320889383,3.829885,3413.1,3412.5,0.09434982]
[1721320889686,3.829885,3413.1,3412.6,0.09429119]
[1721320889989,3.829885,3413.1,3412.3,2.9305]
[1721320890189,3.829885,3413.1,3412.7,0.09423256]
[1721320890362,3.829885,3413.1,3412.2,3.0]
[1721320890698,3.829885,3413.1,3412.3,2.93051]
[1721320890997,3.829885,3413.1,3412.3,3.0249771]
[1721320892258,3.829885,3413.1,3412.4,2.93048]
[1721320892471,3.829885,3413.1,3412.5,0.09422272]
[1721320893196,0.30207907,3413.0,3412.5,0.09422272]
[1721320893401,2.93007,3412.9,3412.5,0.09422272]
[1721320893701,2.9303,3412.7,3412.6,0.09416409]
[1721320893998,2.9303,3412.7,3411.9,2.93088]
[1721320894297,5.27868,3412.7,3411.7,2.93107]
[1721320894501,2.93041,3412.5,3411.9,0.09458292]
[1721320896210,3.089,3412.6,3411.9,0.09458292]
[1721320896364,2.322,3412.0,3411.9,0.09458292]
[1721320896728,2.322,3412.0,3410.8,2.9318]
[1721320896729,2.93115,3411.7,3410.8,2.9318]
[1721320897168,2.93095,3411.9,3410.9,0.08568785]
[1721320897373,0.525295,3411.8,3410.9,0.08568785]
[1721320897899,2.322,3412.0,3410.9,0.08568785]
[1721320898123,2.93102,3411.8,3411.0,2.93163]
[1721320898479,2.93102,3411.8,3411.1,0.08557047]
[1721320899773,2.2623,3411.7,3411.1,0.08557047]
[1721320899975,2.93151,3411.2,3411.1,0.08557047]
[1721320900475,2.93151,3411.2,3410.3,10.37229]
[1721320900672,2.93142,3411.4,3410.3,10.37229]
[1721320900673,2.93141,3411.4,3410.4,3.01818135]
[1721320900981,2.9313,3411.5,3410.6,2.93197]
[1721320901180,2.9313,3411.5,3410.6,5.24657]
[1721320901369,2.9313,3411.5,3410.7,0.08580524]
[1721320901701,2.9313,3411.5,3410.7,3.01774524]
[1721320902016,2.93134,3411.4,3410.7,0.08580524]
[1721320902570,2.93127,3411.5,3410.7,0.08580524]
[1721320903086,2.93127,3411.5,3410.7,3.01774524]
[1721320903287,3.7956722,3411.5,3410.7,3.01774524]
[1721320904080,2.93144,3411.3,3410.7,0.08580524]
[1721320904516,2.93144,3411.3,3410.5,2.93205]
[1721320904683,2.93144,3411.3,3410.6,0.08586394]
[1721320905591,2.93165,3411.1,3410.6,0.08586394]
[1721320905908,2.93165,3411.1,3410.1,2.93244]
[1721320905909,2.2516,3411.0,3410.1,2.93244]
[1721320906087,2.2516,3411.0,3410.2,0.08609878]
[1721320906701,2.2516,3411.0,3410.3,2.93228]
[1721320907015,2.93183,3410.9,3410.4,0.0863111]
[1721320907323,0.811507,3410.8,3410.1,2.93244]
[1721320907492,0.811507,3410.8,3410.5,0.08625239]
[1721320907695,2.2516,3411.0,3410.1,2.93244]
[1721320907924,2.93164,3411.1,3410.3,2.93224]
[1721320908129,2.93169,3411.0,3410.4,0.0863111]
[1721320908329,2.93167,3411.1,3410.4,0.0863111]
[1721320908513,0.35127162,3411.0,3410.4,0.0863111]
[1721320908834,3.28296162,3411.0,3410.4,0.0863111]
[1721320909535,3.28296162,3411.0,3410.2,2.93236]
[1721320909743,2.93169,3411.0,3410.5,0.08625239]
[1721320909889,2.93169,3411.0,3410.2,2.93236]
[1721320910194,2.93153,3411.2,3410.3,3.01863981]
[1721320910626,2.93165,3411.1,3410.3,3.01863981]
[1721320911128,2.4307,3411.6,3410.3,0.08636981]
[1721320911428,2.531,3412.5,3411.7,2.93108]
[1721320911429,2.93041,3412.5,3411.7,2.93108]
[1721320911613,2.93041,3412.5,3411.5,2.93123]
[1721320911614,2.93029,3412.7,3411.8,2.93099]
[1721320911939,2.93005,3413.0,3411.9,2.93091]
[1721320912083,2.93018,3412.8,3411.8,0.08547095]
[1721320912284,2.4755,3413.1,3411.8,2.93094]
[1721320912285,2.92999,3413.0,3411.8,2.93094]
[1721320912491,2.4755,3413.1,3411.6,2.93115]
[1721320912691,0.540529,3413.0,3411.7,0.08552961]
[1721320913088,2.93019,3412.8,3411.9,2.93085]
[1721320913295,2.93006,3412.9,3412.0,3.01615363]
[1721320913496,2.93015,3412.8,3412.0,3.01615363]
[1721320916023,2.92977,3413.3,3412.2,2.93063]
[1721320916228,2.92982,3413.2,3412.2,2.93063]
[1721320916445,2.92989,3413.1,3412.3,0.08517769]
[1721320916625,5.92989,3413.1,3412.3,0.08517769]
[1721320916955,3.0,3413.1,3412.3,3.01574769]
[1721320917093,0.70095307,3413.1,3412.3,3.01574769]
[1721320918040,0.70095307,3413.1,3412.4,2.93048]
[1721320918527,0.70095307,3413.1,3412.5,0.08506041]
[1721320920419,3.63085307,3413.1,3412.5,0.08506041]
[1721320920727,0.70095307,3413.1,3412.3,2.93056]
[1721320920897,0.76403837,3413.0,3412.4,0.08511905]
[1721320921099,3.69400837,3413.0,3412.4,0.08511905]
[1721320921401,3.69400837,3413.0,3411.7,2.531]
[1721320921402,0.76403837,3413.0,3411.7,2.93104]
[1721320921711,5.3737,3413.5,3412.6,2.93025]
[1721320921712,5.2143,3413.5,3412.6,2.93025]
[1721320922050,3.0,3413.8,3412.8,2.93012]
[1721320922051,2.92942,3413.7,3412.8,2.93012]
[1721320922329,2.92948,3413.6,3412.9,0.08466412]
[1721320922543,0.585879,3413.5,3412.9,0.08466412]
[1721320923432,3.515429,3413.5,3412.9,0.08466412]
[1721320923628,0.585879,3413.5,3412.9,0.08466412]
[1721320923829,3.0,3413.7,3412.8,2.93014]
[1721320924030,2.92942,3413.7,3413.0,0.0846055]
[1721320924234,2.92942,3413.7,3412.9,0.08466412]
[1721320924540,2.92946,3413.6,3413.0,0.0846055]
[1721320924738,2.92946,3413.6,3412.8,2.93014]
[1721320924914,0.585878,3413.5,3413.1,0.08454688]
[1721320925233,3.515488,3413.5,3412.7,2.93022]
[1721320925431,3.515488,3413.5,3413.2,0.08448826]
[1721320925632,3.515488,3413.5,3412.7,2.93015]
[1721320925832,3.515488,3413.5,3413.3,0.08442965]
[1721320926033,3.515488,3413.5,3412.7,2.93015]
[1721320926034,0.6444888,3413.4,3412.7,2.93015]
[1721320926210,2.92961,3413.5,3412.7,2.93015]
[1721320926413,2.92961,3413.5,3412.8,0.08472274]
[1721320926723,2.92947,3413.6,3412.8,3.01486274]
[1721320927416,2.92955,3413.5,3412.8,0.08472274]
[1721320927613,2.92989,3413.1,3412.8,0.08472274]
[1721320927823,2.92973,3413.3,3412.8,0.08472274]
[1721320928027,2.92995,3413.1,3412.1,2.9307]
[1721320928226,2.92997,3413.0,3412.9,0.08466412]
[1721320928425,2.92997,3413.0,3412.1,2.9307]
[1721320928728,3.516072,3412.9,3412.2,0.08507457]
[1721320929444,0.585992,3412.9,3412.2,3.01572457]
[1721320929905,2.92995,3413.1,3412.2,3.01572457]
[1721320930238,2.93006,3412.9,3412.2,0.08507457]
[1721320930613,5.85991,3413.1,3412.2,2.93065]
[1721320930820,2.92995,3413.1,3412.3,0.0848799]
[1721320931125,4.066691,3413.1,3412.3,0.0848799]
[1721320931806,5.34834,3413.4,3412.3,0.0848799]
[1721320932036,2.92971,3413.3,3412.5,2.4633]
[1721320932441,3.222487,3413.5,3412.6,3.01500986]
[1721320932738,4.1562697,3413.4,3412.6,3.01493986]
[1721320933536,2.92954,3413.5,3412.7,2.93017]
[1721320933835,2.92954,3413.5,3412.8,0.08458567]
[1721320934408,2.92941,3413.7,3412.8,3.01472567]
[1721320934609,5.92951,3413.6,3412.8,3.01472567]
[1721320938043,2.92951,3413.6,3412.8,3.01472567]
[1721320939748,3.515391,3413.6,3412.8,3.01472567]
[1721320941443,3.515391,3413.6,3412.8,3.01466567]
[1721320943644,0.585881,3413.6,3412.8,0.08458567]
[1721320943952,0.585881,3413.6,3412.0,2.93076]
[1721320943953,9.768,3414.5,3413.6,2.9294]
[1721320944151,2.92858,3414.7,3413.6,2.92942]
[1721320944359,4.45710259,3414.8,3414.0,2.92911]
[1721320944360,3.11190591,3414.8,3414.0,2.92911]
[1721320944578,3.11190591,3414.8,3413.7,0.08397168]
[1721320944579,2.92859,3414.7,3413.8,2.92926]
[1721320944752,2.92859,3414.7,3414.1,0.08373732]
[1721320944956,1.13974959,3414.6,3413.9,5.35134]
[1721320945265,2.9287,3414.5,3414.2,0.08367874]
[1721320945415,2.9287,3414.5,3413.7,2.92932]
[1721320945621,3.089,3414.5,3413.2,2.92978]
[1721320945848,3.089,3414.5,3412.9,2.531]
[1721320945849,5.8584,3413.9,3413.8,0.08385233]
[1721320946065,2.92936,3413.8,3412.8,5.93007]
[1721320946255,3.51504,3413.9,3412.7,9.8819]
[1721320946256,2.92961,3413.5,3412.7,2.4419]
[1721320946561,5.32949,3413.7,3412.8,0.08443843]
[1721320946721,5.32949,3413.7,3412.8,3.01450843]
[1721320947074,2.92946,3413.6,3412.8,0.08443843]
[1721320947237,0.532956,3413.5,3412.8,0.08443843]
[1721320947418,5.8601,3412.9,3412.8,0.08443843]
[1721320947618,5.8601,3412.9,3411.9,2.93088]
[1721320947619,2.93021,3412.8,3411.9,2.93088]
[1721320947923,2.93021,3412.8,3412.0,0.08490755]
[1721320948433,3.089,3413.2,3412.0,0.08490755]
[1721320948434,2.9303,3412.7,3412.0,0.08490755]
[1721320948731,2.9301,3412.9,3411.3,10.37142]
[1721320948732,2.93051,3412.4,3411.3,10.37142]
[1721320948973,5.21742,3413.0,3411.3,10.37142]
[1721320948974,0.293051,3412.3,3411.5,2.93125]
[1721320949325,0.293051,3412.3,3411.6,0.0851422]
[1721320949678,2.93067,3412.2,3411.6,0.0851422]
[1721320949839,2.93067,3412.2,3411.3,7.44]
[1721320950043,2.93067,3412.2,3411.3,10.37141]
[1721320950255,2.93067,3412.2,3411.4,0.08525954]
[1721320950451,2.93097,3411.9,3411.4,0.08525954]
[1721320950663,2.9309,3412.0,3411.4,0.08525954]
[1721320950819,2.9309,3412.0,3411.1,2.3747]
[1721320951023,2.9309,3412.0,3411.1,5.30629]
[1721320951249,3.5460811,3412.2,3411.3,2.93142]
[1721320951434,3.5460811,3412.2,3411.4,0.08239721]
[1721320951435,0.6154211,3412.2,3411.4,0.08239721]
[1721320951865,3.5460811,3412.2,3411.2,2.9315]
[1721320952198,2.93074,3412.1,3411.2,2.9315]
[1721320952388,3.5461411,3412.2,3411.3,3.01382588]
[1721320952852,2.93074,3412.1,3411.3,3.01382588]
[1721320953052,3.57840711,3412.1,3411.3,0.08245588]
[1721320953256,2.93089,3412.0,3411.1,5.3063]
[1721320953495,2.93089,3412.0,3411.2,0.08251456]
[1721320954069,0.64766711,3412.1,3411.2,3.01399456]
[1721320954280,2.93077,3412.1,3411.2,3.01399456]
[1721320954769,2.93093,3411.9,3411.2,0.08251456]
[1721320955278,2.93084,3412.0,3411.2,0.08251456]
[1721320955629,2.93084,3412.0,3411.2,3.01402456]
[1721320955862,2.93067,3412.2,3411.2,4.09917102]
[1721320956073,2.93067,3412.2,3411.3,2.93141]
[1721320956435,2.9304,3412.5,3411.4,0.08253007]
[1721320956637,2.93023,3412.7,3411.1,2.3747]
[1721320956876,2.9304,3412.5,3411.6,2.93111]
[1721320957177,0.886063,3412.5,3411.7,3.01342407]
[1721320957481,2.93049,3412.4,3411.7,0.08235407]
[1721320957782,2.93049,3412.4,3411.4,2.93133]
[1721320958086,2.93049,3412.4,3411.8,0.0822954]
[1721320958252,2.93049,3412.4,3411.5,2.93126]
[1721320958253,2.93049,3412.4,3411.6,2.93116]
[1721320958635,2.93063,3412.3,3411.4,2.9313]
[1721320958863,2.93063,3412.3,3411.7,0.08235407]
[1721320959042,2.93063,3412.3,3411.5,2.93126]
[1721320959443,2.93063,3412.3,3411.6,0.08241273]
[1721320959845,2.93063,3412.3,3411.4,3.46193]
[1721320960053,2.93063,3412.3,3411.5,3.0137114]
[1721320960248,2.9304,3412.5,3411.6,0.64757314]
[1721320960480,2.93049,3412.4,3411.7,0.08235407]
[1721320960678,2.93066,3412.2,3411.4,2.93129]
[1721320960877,2.93066,3412.2,3411.5,0.0824714]
[1721320961734,2.93083,3412.0,3411.5,0.0824714]
[1721320961982,2.93083,3412.0,3411.2,2.93144]
[1721320962163,2.93083,3412.0,3411.6,0.08241273]
[1721320962475,2.93083,3412.0,3411.2,4.008328]
[1721320962476,2.93066,3412.2,3411.7,0.08235407]
[1721320962774,2.93066,3412.2,3411.3,2.93143]
[1721320962949,2.93066,3412.2,3411.8,0.0822954]
[1721320963143,2.93066,3412.2,3411.4,2.93134]
[1721320963349,2.93066,3412.2,3411.5,0.0824714]
[1721320963745,2.93074,3412.1,3411.5,0.0824714]
[1721320963942,2.93074,3412.1,3411.2,2.93145]
[1721320964148,2.93074,3412.1,3411.3,3.01401875]
[1721320965038,2.93084,3412.0,3411.3,0.08258875]
[1721320965334,2.93108,3411.8,3410.9,2.93176]
[1721320965552,2.93084,3412.0,3411.0,3.08276173]
[1721320965752,2.93084,3412.0,3411.0,0.08276173]
[1721320965966,2.93092,3411.9,3411.1,2.93152]